[Event "Late-Titled-Tuesday-Blitz-January-30-2024"]
[Site "Chess.com"]
[Date "2024.01.30"]
[Round "2"]
[White "Mops_2004"]
[Black "Rawnsdale"]
[Result "1/2-1/2"]
[WhiteElo "2769"]
[BlackElo "2555"]
[TimeControl "180+1"]
[EndTime "14:18:26 PST"]
[Termination "Game drawn by repetition"]

1. Nf3 {[%clk 0:03:00.9]} 1... d5 {[%clk 0:02:58.7]} 2. g3 {[%clk 0:03:01.1]}
2... e6 {[%clk 0:02:58.8]} 3. Bg2 {[%clk 0:03:01.5]} 3... Be7 {[%clk 0:02:59.2]}
4. O-O {[%clk 0:03:00.5]} 4... Nf6 {[%clk 0:02:59.6]} 5. c4 {[%clk 0:03:00.7]}
5... O-O {[%clk 0:02:59.5]} 6. b3 {[%clk 0:03:01.2]} 6... c6 {[%clk 0:02:59.8]}
7. Bb2 {[%clk 0:03:01]} 7... Nbd7 {[%clk 0:03:00]} 8. d3 {[%clk 0:03:01.3]} 8...
b6 {[%clk 0:03:00.2]} 9. Nbd2 {[%clk 0:03:01.4]} 9... Bb7 {[%clk 0:03:00.5]} 10.
e4 {[%clk 0:03:02.1]} 10... Nc5 {[%clk 0:02:31]} 11. e5 {[%clk 0:03:01.8]} 11...
Nfd7 {[%clk 0:02:29.9]} 12. Qc2 {[%clk 0:02:52.9]} 12... b5 {[%clk 0:02:07.4]}
13. d4 {[%clk 0:02:42.3]} 13... Na6 {[%clk 0:01:46.7]} 14. c5 {[%clk 0:02:42.3]}
14... f6 {[%clk 0:01:38.5]} 15. exf6 {[%clk 0:02:38.1]} 15... Bxf6 {[%clk
0:01:36.9]} 16. Rae1 {[%clk 0:02:30.9]} 16... Re8 {[%clk 0:01:36.9]} 17. h4
{[%clk 0:02:26.9]} 17... Qc7 {[%clk 0:01:17.9]} 18. Bh3 {[%clk 0:02:18.8]} 18...
Nf8 {[%clk 0:01:01.4]} 19. Re3 {[%clk 0:02:17.3]} 19... Re7 {[%clk 0:00:43.4]}
20. Rfe1 {[%clk 0:02:16.6]} 20... Rae8 {[%clk 0:00:43.5]} 21. a3 {[%clk
0:02:07.4]} 21... b4 {[%clk 0:00:41.2]} 22. a4 {[%clk 0:02:04.4]} 22... Nb8
{[%clk 0:00:41.5]} 23. Nf1 {[%clk 0:01:57.8]} 23... Nbd7 {[%clk 0:00:40.7]} 24.
Qe2 {[%clk 0:01:55.8]} 24... a5 {[%clk 0:00:22.1]} 25. h5 {[%clk 0:01:47.6]}
25... Qc8 {[%clk 0:00:22]} 26. N1h2 {[%clk 0:01:44.7]} 26... Ba6 {[%clk
0:00:22.2]} 27. Qc2 {[%clk 0:01:39.9]} 27... Qc7 {[%clk 0:00:22.1]} 28. Ng4
{[%clk 0:01:37.7]} 28... h6 {[%clk 0:00:16.8]} 29. Qb1 {[%clk 0:01:14.7]} 29...
Qc8 {[%clk 0:00:06]} 30. Qa1 {[%clk 0:01:10.7]} 30... Qc7 {[%clk 0:00:05.9]} 31.
Rc1 {[%clk 0:01:01.7]} 31... Qc8 {[%clk 0:00:04.8]} 32. Ne1 {[%clk 0:01:01.8]}
32... Qc7 {[%clk 0:00:04.8]} 33. Nd3 {[%clk 0:01:01.5]} 33... Bxd3 {[%clk
0:00:05.1]} 34. Rxd3 {[%clk 0:01:02.4]} 34... e5 {[%clk 0:00:05.6]} 35. Nxf6+
{[%clk 0:00:40.4]} 35... gxf6 {[%clk 0:00:05.8]} 36. Rf1 {[%clk 0:00:29.3]}
36... e4 {[%clk 0:00:06]} 37. Re3 {[%clk 0:00:29.6]} 37... Rg7 {[%clk
0:00:06.7]} 38. Bc1 {[%clk 0:00:25.2]} 38... Ne6 {[%clk 0:00:06.3]} 39. Bxe6+
{[%clk 0:00:19.5]} 39... Rxe6 {[%clk 0:00:07.2]} 40. Re2 {[%clk 0:00:19.7]}
40... Kh7 {[%clk 0:00:07.7]} 41. Kh2 {[%clk 0:00:19.8]} 41... f5 {[%clk
0:00:07.8]} 42. Bf4 {[%clk 0:00:19.8]} 42... Qd8 {[%clk 0:00:08.2]} 43. Qd1
{[%clk 0:00:18.7]} 43... Nf6 {[%clk 0:00:08.3]} 44. f3 {[%clk 0:00:17]} 44...
Qe7 {[%clk 0:00:07.5]} 45. Be5 {[%clk 0:00:16.4]} 45... exf3 {[%clk 0:00:06.5]}
46. Rxf3 {[%clk 0:00:13.8]} 46... Ng4+ {[%clk 0:00:07]} 47. Kg2 {[%clk
0:00:13.9]} 47... Nxe5 {[%clk 0:00:07.3]} 48. dxe5 {[%clk 0:00:14.2]} 48... Rxe5
{[%clk 0:00:08.2]} 49. Ref2 {[%clk 0:00:13.8]} 49... Re3 {[%clk 0:00:07.1]} 50.
Qc2 {[%clk 0:00:10.1]} 50... Rxf3 {[%clk 0:00:03.3]} 51. Rxf3 {[%clk 0:00:11]}
51... Qe4 {[%clk 0:00:03.5]} 52. Qf2 {[%clk 0:00:07]} 52... f4 {[%clk
0:00:02.8]} 53. Kh3 {[%clk 0:00:04.6]} 53... Rxg3+ {[%clk 0:00:02.4]} 54. Rxg3
{[%clk 0:00:05.5]} 54... fxg3 {[%clk 0:00:03.3]} 55. Qf7+ {[%clk 0:00:05]} 55...
Kh8 {[%clk 0:00:03.4]} 56. Qf8+ {[%clk 0:00:05.5]} 56... Kh7 {[%clk 0:00:04]}
57. Qf7+ {[%clk 0:00:06.4]} 57... Kh8 {[%clk 0:00:04.6]} 58. Qf8+ {[%clk
0:00:07.3]} 58... Kh7 {[%clk 0:00:05.2]} 59. Qf7+ {[%clk 0:00:08.2]} 1/2-1/2

[Event "Late-Titled-Tuesday-Blitz-January-30-2024"]
[Site "Chess.com"]
[Date "2024.01.30"]
[Round "2"]
[White "Alexander_Donchenko"]
[Black "wqws"]
[Result "1-0"]
[WhiteElo "2935"]
[BlackElo "2605"]
[TimeControl "180+1"]
[EndTime "14:18:32 PST"]
[Termination "Alexander_Donchenko won by resignation"]

1. Nf3 {[%clk 0:03:00.9]} 1... Nf6 {[%clk 0:02:58.5]} 2. g3 {[%clk 0:03:01.3]}
2... g6 {[%clk 0:02:58.6]} 3. Bg2 {[%clk 0:03:02]} 3... Bg7 {[%clk 0:02:58.9]}
4. O-O {[%clk 0:03:02.9]} 4... O-O {[%clk 0:02:59]} 5. d4 {[%clk 0:03:03.7]}
5... d6 {[%clk 0:02:57.4]} 6. b3 {[%clk 0:03:04.3]} 6... c6 {[%clk 0:02:47]} 7.
Bb2 {[%clk 0:03:04.3]} 7... Nbd7 {[%clk 0:02:43.5]} 8. Nbd2 {[%clk 0:03:04.1]}
8... Re8 {[%clk 0:02:42.6]} 9. Re1 {[%clk 0:02:59.5]} 9... d5 {[%clk 0:02:42.5]}
10. c4 {[%clk 0:02:58.2]} 10... a5 {[%clk 0:02:41.3]} 11. Ne5 {[%clk 0:02:50.4]}
11... Nxe5 {[%clk 0:02:40.2]} 12. dxe5 {[%clk 0:02:50.5]} 12... Nd7 {[%clk
0:02:39]} 13. cxd5 {[%clk 0:02:45.1]} 13... cxd5 {[%clk 0:02:34]} 14. Nf3 {[%clk
0:02:40.2]} 14... e6 {[%clk 0:02:29.9]} 15. Rc1 {[%clk 0:02:34]} 15... a4 {[%clk
0:02:29.1]} 16. bxa4 {[%clk 0:02:32.9]} 16... Nb6 {[%clk 0:02:28.4]} 17. Bd4
{[%clk 0:02:24.8]} 17... Nxa4 {[%clk 0:02:25.7]} 18. h4 {[%clk 0:02:23.3]} 18...
Bd7 {[%clk 0:02:20.9]} 19. h5 {[%clk 0:02:22.8]} 19... Rc8 {[%clk 0:02:18.6]}
20. Qd2 {[%clk 0:02:16.8]} 20... Qe7 {[%clk 0:02:10.6]} 21. Rxc8 {[%clk
0:01:57.3]} 21... Rxc8 {[%clk 0:02:09.9]} 22. Rc1 {[%clk 0:01:58.2]} 22... Qf8
{[%clk 0:01:59.8]} 23. e3 {[%clk 0:01:51.6]} 23... gxh5 {[%clk 0:01:52.3]} 24.
Bf1 {[%clk 0:01:44.6]} 24... Nc5 {[%clk 0:01:49.2]} 25. Qd1 {[%clk 0:01:31.6]}
25... Ne4 {[%clk 0:01:47.2]} 26. Rxc8 {[%clk 0:01:30.7]} 26... Qxc8 {[%clk
0:01:48.1]} 27. Nh4 {[%clk 0:01:21.7]} 27... Qc7 {[%clk 0:01:39]} 28. Qxh5
{[%clk 0:01:20.4]} 28... Qc2 {[%clk 0:01:38.6]} 29. Qe2 {[%clk 0:01:06.7]} 29...
Qb1 {[%clk 0:01:16.2]} 30. Kh2 {[%clk 0:01:01.9]} 30... Qc1 {[%clk 0:01:11.3]}
31. Bg2 {[%clk 0:00:59.1]} 31... Nd2 {[%clk 0:00:49.2]} 32. Nf3 {[%clk
0:00:47.2]} 32... Nxf3+ {[%clk 0:00:47.5]} 33. Bxf3 {[%clk 0:00:48.1]} 33... Qc7
{[%clk 0:00:46.2]} 34. Qb2 {[%clk 0:00:46.5]} 34... b5 {[%clk 0:00:46.3]} 35.
Be2 {[%clk 0:00:45]} 35... Qc6 {[%clk 0:00:44]} 36. Kg2 {[%clk 0:00:35.7]} 36...
h6 {[%clk 0:00:43.7]} 37. Bd3 {[%clk 0:00:34]} 37... Bf8 {[%clk 0:00:42.7]} 38.
Qe2 {[%clk 0:00:33]} 38... b4 {[%clk 0:00:36.9]} 39. Qg4+ {[%clk 0:00:32.1]}
39... Bg7 {[%clk 0:00:37]} 40. Qd1 {[%clk 0:00:28.6]} 40... Qa4 {[%clk
0:00:34.9]} 41. Qc1 {[%clk 0:00:21.4]} 41... Qc6 {[%clk 0:00:29.9]} 42. Qd2
{[%clk 0:00:20.5]} 42... Qa4 {[%clk 0:00:28.9]} 43. Bb1 {[%clk 0:00:20.2]} 43...
b3 {[%clk 0:00:27.6]} 44. Qd3 {[%clk 0:00:11]} 44... Qc4 {[%clk 0:00:16.4]} 45.
Qh7+ {[%clk 0:00:08.8]} 45... Kf8 {[%clk 0:00:16.6]} 46. axb3 {[%clk 0:00:09.4]}
46... Qb4 {[%clk 0:00:16.9]} 47. Qc2 {[%clk 0:00:05.6]} 47... Qb8 {[%clk
0:00:15.7]} 48. Bc5+ {[%clk 0:00:05.2]} 48... Ke8 {[%clk 0:00:15.6]} 49. Bd6
{[%clk 0:00:05.7]} 49... Qb7 {[%clk 0:00:13.8]} 50. Qh7 {[%clk 0:00:05.5]} 50...
d4+ {[%clk 0:00:13.7]} 51. Be4 {[%clk 0:00:05.8]} 51... Bc6 {[%clk 0:00:14]} 52.
Qg8+ {[%clk 0:00:05.9]} 52... Kd7 {[%clk 0:00:14.3]} 53. Qxf7+ {[%clk
0:00:05.9]} 53... Kc8 {[%clk 0:00:14.9]} 54. Qg8+ {[%clk 0:00:05.5]} 54... Kd7
{[%clk 0:00:14.9]} 55. Qxg7+ {[%clk 0:00:05.9]} 55... Kc8 {[%clk 0:00:15.4]} 56.
Qf8+ {[%clk 0:00:06.3]} 56... Kd7 {[%clk 0:00:15.2]} 57. Qe7+ {[%clk 0:00:06.5]}
1-0

[Event "Late-Titled-Tuesday-Blitz-January-30-2024"]
[Site "Chess.com"]
[Date "2024.01.30"]
[Round "2"]
[White "Ajedrecista3000"]
[Black "temus_galaktionov"]
[Result "0-1"]
[WhiteElo "2587"]
[BlackElo "2873"]
[TimeControl "180+1"]
[EndTime "14:18:33 PST"]
[Termination "temus_galaktionov won by resignation"]

1. Nf3 {[%clk 0:03:00.9]} 1... c6 {[%clk 0:03:00.9]} 2. c4 {[%clk 0:02:59.7]}
2... g6 {[%clk 0:03:01.3]} 3. d4 {[%clk 0:02:55.3]} 3... Bg7 {[%clk 0:03:02.2]}
4. e4 {[%clk 0:02:54.2]} 4... d6 {[%clk 0:03:02.7]} 5. Nc3 {[%clk 0:02:54.2]}
5... Bg4 {[%clk 0:03:01.9]} 6. Be2 {[%clk 0:02:53.9]} 6... Qb6 {[%clk
0:03:02.5]} 7. Na4 {[%clk 0:02:48]} 7... Qa5+ {[%clk 0:03:02.3]} 8. Bd2 {[%clk
0:02:41.4]} 8... Qc7 {[%clk 0:03:02.8]} 9. Be3 {[%clk 0:02:37.7]} 9... Nd7
{[%clk 0:03:02.9]} 10. O-O {[%clk 0:02:36.7]} 10... Ngf6 {[%clk 0:03:02.9]} 11.
Nc3 {[%clk 0:02:31.6]} 11... O-O {[%clk 0:03:02.5]} 12. Rc1 {[%clk 0:02:31.7]}
12... e5 {[%clk 0:03:02.3]} 13. d5 {[%clk 0:02:31]} 13... Rfc8 {[%clk
0:02:56.7]} 14. Nd2 {[%clk 0:02:30.2]} 14... Bxe2 {[%clk 0:02:55.9]} 15. Qxe2
{[%clk 0:02:31.1]} 15... a6 {[%clk 0:02:55.1]} 16. a4 {[%clk 0:02:28.7]} 16...
Qa5 {[%clk 0:02:49.5]} 17. Qd3 {[%clk 0:02:19.3]} 17... Nc5 {[%clk 0:02:36.9]}
18. Bxc5 {[%clk 0:02:16.7]} 18... Qxc5 {[%clk 0:02:37.8]} 19. Na2 {[%clk
0:01:57.4]} 19... a5 {[%clk 0:02:24]} 20. Nb3 {[%clk 0:01:51.3]} 20... Qb6
{[%clk 0:02:24]} 21. Rc2 {[%clk 0:01:22.6]} 21... cxd5 {[%clk 0:02:17.2]} 22.
cxd5 {[%clk 0:01:23.5]} 22... Rxc2 {[%clk 0:02:05.9]} 23. Qxc2 {[%clk
0:01:21.8]} 23... Nxe4 {[%clk 0:02:06]} 24. Qxe4 {[%clk 0:01:05]} 24... Qxb3
{[%clk 0:02:05.5]} 25. Nc3 {[%clk 0:01:05.9]} 25... Qb6 {[%clk 0:01:46.9]} 26.
Nb5 {[%clk 0:01:04.5]} 26... Rc8 {[%clk 0:01:46.5]} 27. Qg4 {[%clk 0:00:55.9]}
27... f5 {[%clk 0:01:45.7]} 28. Qg5 {[%clk 0:00:56.5]} 28... Kf7 {[%clk
0:01:41.6]} 29. h4 {[%clk 0:00:56.8]} 29... Rc5 {[%clk 0:01:27.8]} 30. Rd1
{[%clk 0:00:55.8]} 30... Rc2 {[%clk 0:01:26.7]} 31. Rf1 {[%clk 0:00:55.2]} 31...
Rc4 {[%clk 0:01:23.7]} 32. b3 {[%clk 0:00:49.5]} 32... Rc5 {[%clk 0:01:13.5]}
33. Qd2 {[%clk 0:00:31.8]} 33... Qd8 {[%clk 0:01:08.7]} 34. Rc1 {[%clk
0:00:26.6]} 34... Rxc1+ {[%clk 0:00:46.4]} 35. Qxc1 {[%clk 0:00:27.5]} 35... Bf8
{[%clk 0:00:46.5]} 36. Qc3 {[%clk 0:00:20.1]} 36... Be7 {[%clk 0:00:37.5]} 37.
g3 {[%clk 0:00:17.1]} 37... h6 {[%clk 0:00:34.1]} 38. Kg2 {[%clk 0:00:17]} 38...
g5 {[%clk 0:00:33.7]} 39. h5 {[%clk 0:00:17.3]} 39... Kf6 {[%clk 0:00:22.3]} 40.
Qc2 {[%clk 0:00:17.2]} 40... Qd7 {[%clk 0:00:22]} 41. Qc3 {[%clk 0:00:17.8]}
41... Kf7 {[%clk 0:00:21.7]} 42. Qxa5 {[%clk 0:00:17.7]} 42... Qc8 {[%clk
0:00:20.6]} 43. Qc3 {[%clk 0:00:17.3]} 43... Qxc3 {[%clk 0:00:20.2]} 44. Nxc3
{[%clk 0:00:18.2]} 44... e4 {[%clk 0:00:19.9]} 45. f3 {[%clk 0:00:15.3]} 45...
exf3+ {[%clk 0:00:19.9]} 46. Kxf3 {[%clk 0:00:15.5]} 46... Kf6 {[%clk
0:00:20.6]} 47. Nd1 {[%clk 0:00:13.3]} 47... Ke5 {[%clk 0:00:20.7]} 48. Ne3
{[%clk 0:00:13.8]} 48... Bd8 {[%clk 0:00:19.7]} 49. g4 {[%clk 0:00:12.2]} 49...
f4 {[%clk 0:00:17.8]} 50. Nf5 {[%clk 0:00:12.7]} 50... Kxd5 {[%clk 0:00:18]} 51.
Nxh6 {[%clk 0:00:13.1]} 51... Kc5 {[%clk 0:00:16.9]} 52. Nf7 {[%clk 0:00:12.8]}
52... Bf6 {[%clk 0:00:16.9]} 53. h6 {[%clk 0:00:12.8]} 53... d5 {[%clk 0:00:17]}
54. h7 {[%clk 0:00:11.7]} 54... Kb4 {[%clk 0:00:17.6]} 55. Nxg5 {[%clk
0:00:10.1]} 55... Kxb3 {[%clk 0:00:16.3]} 56. Nf7 {[%clk 0:00:10.4]} 56... d4
{[%clk 0:00:15.7]} 57. g5 {[%clk 0:00:10.6]} 57... Bg7 {[%clk 0:00:16.1]} 58.
h8=Q {[%clk 0:00:06.9]} 58... Bxh8 {[%clk 0:00:16]} 59. Nxh8 {[%clk 0:00:07.8]}
59... d3 {[%clk 0:00:16.8]} 60. g6 {[%clk 0:00:08.4]} 60... d2 {[%clk
0:00:16.8]} 61. g7 {[%clk 0:00:06.6]} 61... d1=Q+ {[%clk 0:00:16.7]} 62. Kxf4
{[%clk 0:00:07.1]} 62... Qg1 {[%clk 0:00:16.2]} 0-1

[Event "Late-Titled-Tuesday-Blitz-January-30-2024"]
[Site "Chess.com"]
[Date "2024.01.30"]
[Round "2"]
[White "BogdanDeac"]
[Black "Adar_07"]
[Result "1/2-1/2"]
[WhiteElo "3052"]
[BlackElo "2657"]
[TimeControl "180+1"]
[EndTime "14:18:34 PST"]
[Termination "Game drawn - insufficient material"]

1. d4 {[%clk 0:03:00.9]} 1... Nf6 {[%clk 0:02:59.8]} 2. Nf3 {[%clk 0:03:00.2]}
2... g6 {[%clk 0:02:58.2]} 3. Nbd2 {[%clk 0:03:00.1]} 3... d5 {[%clk 0:02:57.6]}
4. Nb3 {[%clk 0:03:00.2]} 4... Bg7 {[%clk 0:02:58.1]} 5. Bf4 {[%clk 0:03:00.8]}
5... O-O {[%clk 0:02:57.9]} 6. e3 {[%clk 0:03:00.9]} 6... a5 {[%clk 0:02:57.3]}
7. a4 {[%clk 0:03:00.7]} 7... Nh5 {[%clk 0:02:52.6]} 8. Bg5 {[%clk 0:02:59.9]}
8... h6 {[%clk 0:02:47.8]} 9. Bh4 {[%clk 0:02:59.4]} 9... g5 {[%clk 0:02:48.2]}
10. Nfd2 {[%clk 0:02:59.4]} 10... Nf6 {[%clk 0:02:43.8]} 11. Bg3 {[%clk
0:02:58.7]} 11... Bf5 {[%clk 0:02:43.7]} 12. h4 {[%clk 0:02:55.6]} 12... g4
{[%clk 0:02:43.3]} 13. h5 {[%clk 0:02:55.7]} 13... Nc6 {[%clk 0:02:42.6]} 14.
Bd3 {[%clk 0:02:48.5]} 14... Bxd3 {[%clk 0:02:39.3]} 15. cxd3 {[%clk 0:02:48.1]}
15... Nb4 {[%clk 0:02:39.9]} 16. Nf1 {[%clk 0:02:36.8]} 16... Qd7 {[%clk
0:02:38.2]} 17. Be5 {[%clk 0:01:36.2]} 17... Qf5 {[%clk 0:02:36.5]} 18. Bxf6
{[%clk 0:01:36.1]} 18... Nxd3+ {[%clk 0:02:35.2]} 19. Ke2 {[%clk 0:01:18.2]}
19... Nxf2 {[%clk 0:02:22.2]} 20. Qe1 {[%clk 0:01:16.6]} 20... Nxh1 {[%clk
0:02:21.2]} 21. Bxg7 {[%clk 0:01:15.7]} 21... Kxg7 {[%clk 0:02:14.8]} 22. Qh4
{[%clk 0:01:14.6]} 22... e5 {[%clk 0:01:59.6]} 23. Qxh1 {[%clk 0:01:10.6]} 23...
Rfe8 {[%clk 0:01:59.4]} 24. Qh4 {[%clk 0:00:57.4]} 24... Ra6 {[%clk 0:01:48.1]}
25. Ng3 {[%clk 0:00:49.3]} 25... Qc2+ {[%clk 0:01:46.7]} 26. Nd2 {[%clk
0:00:49.5]} 26... exd4 {[%clk 0:01:46]} 27. Qxg4+ {[%clk 0:00:49]} 27... Kh7
{[%clk 0:01:37.2]} 28. Qxd4 {[%clk 0:00:48.5]} 28... Rae6 {[%clk 0:01:32.8]} 29.
Nf1 {[%clk 0:00:43]} 29... Re5 {[%clk 0:01:23.2]} 30. g4 {[%clk 0:00:20.2]}
30... f5 {[%clk 0:01:19.6]} 31. Ra3 {[%clk 0:00:10.9]} 31... c5 {[%clk
0:01:16.7]} 32. Qc3 {[%clk 0:00:05.9]} 32... Qxc3 {[%clk 0:01:12.4]} 33. Rxc3
{[%clk 0:00:06.8]} 33... d4 {[%clk 0:01:12.9]} 34. Rb3 {[%clk 0:00:06.8]} 34...
fxg4 {[%clk 0:01:04.6]} 35. Rxb7+ {[%clk 0:00:06]} 35... Kh8 {[%clk 0:01:04.6]}
36. Nc4 {[%clk 0:00:05.4]} 36... Rxh5 {[%clk 0:01:04.7]} 37. Nxa5 {[%clk
0:00:03.9]} 37... Rh3 {[%clk 0:00:54.1]} 38. Nc4 {[%clk 0:00:03.4]} 38... d3+
{[%clk 0:00:33.9]} 39. Kxd3 {[%clk 0:00:02.8]} 39... g3 {[%clk 0:00:34.4]} 40.
Nxg3 {[%clk 0:00:03.2]} 40... Rxg3 {[%clk 0:00:34.2]} 41. a5 {[%clk 0:00:03.9]}
41... Rg6 {[%clk 0:00:31.3]} 42. Rc7 {[%clk 0:00:03.3]} 42... h5 {[%clk
0:00:30.3]} 43. Rxc5 {[%clk 0:00:02.9]} 43... Rh6 {[%clk 0:00:30.9]} 44. Ne5
{[%clk 0:00:03]} 44... Kg8 {[%clk 0:00:29.8]} 45. Nf3 {[%clk 0:00:02.7]} 45...
h4 {[%clk 0:00:29.6]} 46. e4 {[%clk 0:00:02.5]} 46... h3 {[%clk 0:00:29.5]} 47.
Nh2 {[%clk 0:00:02.9]} 47... Rg6 {[%clk 0:00:27.6]} 48. Rh5 {[%clk 0:00:02.7]}
48... Rg3+ {[%clk 0:00:28]} 49. Kd4 {[%clk 0:00:02.5]} 49... Rb8 {[%clk
0:00:28.1]} 50. a6 {[%clk 0:00:02]} 50... Rxb2 {[%clk 0:00:28.5]} 51. a7 {[%clk
0:00:02.4]} 51... Ra2 {[%clk 0:00:29]} 52. Ke5 {[%clk 0:00:02.8]} 52... Rxa7
{[%clk 0:00:28.2]} 53. Kf4 {[%clk 0:00:03.4]} 53... Rb3 {[%clk 0:00:28.1]} 54.
Ng4 {[%clk 0:00:02.9]} 54... Rf7+ {[%clk 0:00:25.3]} 55. Kg5 {[%clk 0:00:03.3]}
55... Rg3 {[%clk 0:00:25.1]} 56. Kh4 {[%clk 0:00:03.5]} 56... Rd3 {[%clk
0:00:10.7]} 57. Nh6+ {[%clk 0:00:03.2]} 57... Kg7 {[%clk 0:00:10.8]} 58. Nxf7
{[%clk 0:00:04.1]} 58... Kxf7 {[%clk 0:00:11.7]} 59. Kg4 {[%clk 0:00:04.6]}
59... Kf6 {[%clk 0:00:11.7]} 60. Rxh3 {[%clk 0:00:04.8]} 60... Rxh3 {[%clk
0:00:11.5]} 61. Kxh3 {[%clk 0:00:05.7]} 61... Ke5 {[%clk 0:00:12.2]} 62. Kg2
{[%clk 0:00:06.6]} 62... Kxe4 {[%clk 0:00:13.1]} 1/2-1/2

[Event "Late-Titled-Tuesday-Blitz-January-30-2024"]
[Site "Chess.com"]
[Date "2024.01.30"]
[Round "2"]
[White "Korchmar_Vasiliy"]
[Black "NCchamp"]
[Result "1-0"]
[WhiteElo "2708"]
[BlackElo "2319"]
[TimeControl "180+1"]
[EndTime "14:18:34 PST"]
[Termination "Korchmar_Vasiliy won by resignation"]

1. e4 {[%clk 0:03:00.9]} 1... c6 {[%clk 0:02:57.5]} 2. d4 {[%clk 0:03:00.9]}
2... d5 {[%clk 0:02:58.4]} 3. exd5 {[%clk 0:03:01.2]} 3... cxd5 {[%clk
0:02:58.9]} 4. Bd3 {[%clk 0:03:01.6]} 4... Nc6 {[%clk 0:02:59.3]} 5. c3 {[%clk
0:03:02.1]} 5... Nf6 {[%clk 0:02:59.7]} 6. h3 {[%clk 0:03:02]} 6... g6 {[%clk
0:02:59.5]} 7. Nf3 {[%clk 0:03:00.4]} 7... Bf5 {[%clk 0:02:59.7]} 8. O-O {[%clk
0:03:00.2]} 8... Bg7 {[%clk 0:02:43.3]} 9. Bxf5 {[%clk 0:02:58.9]} 9... gxf5
{[%clk 0:02:43.4]} 10. Bf4 {[%clk 0:02:58.8]} 10... Qb6 {[%clk 0:02:39.5]} 11.
Qb3 {[%clk 0:02:54]} 11... Qxb3 {[%clk 0:02:35.3]} 12. axb3 {[%clk 0:02:54.9]}
12... e6 {[%clk 0:02:33.4]} 13. Ne1 {[%clk 0:02:52.4]} 13... Ne4 {[%clk
0:02:32.3]} 14. Nd3 {[%clk 0:02:51]} 14... Ke7 {[%clk 0:02:11.3]} 15. f3 {[%clk
0:02:49.3]} 15... Nd6 {[%clk 0:02:11.3]} 16. Nd2 {[%clk 0:02:48.4]} 16... h5
{[%clk 0:02:08.1]} 17. b4 {[%clk 0:02:40.4]} 17... Bh6 {[%clk 0:02:04.3]} 18.
Bxh6 {[%clk 0:02:39.8]} 18... Rxh6 {[%clk 0:02:05.2]} 19. Rfe1 {[%clk
0:02:20.3]} 19... h4 {[%clk 0:01:54.8]} 20. Kf2 {[%clk 0:02:13.4]} 20... Rg8
{[%clk 0:01:51.9]} 21. Nf4 {[%clk 0:02:13.2]} 21... Kd7 {[%clk 0:01:51]} 22. Nb3
{[%clk 0:02:13]} 22... b6 {[%clk 0:01:49.4]} 23. Ra6 {[%clk 0:02:11.3]} 23...
Nb5 {[%clk 0:01:40.6]} 24. Rea1 {[%clk 0:02:09.2]} 24... Nb8 {[%clk 0:01:38.2]}
25. Rxa7+ {[%clk 0:02:07.1]} 25... Nxa7 {[%clk 0:01:35.3]} 26. Rxa7+ {[%clk
0:02:08]} 26... Kd6 {[%clk 0:01:16.5]} 27. Rxf7 {[%clk 0:02:05.1]} 27... Nd7
{[%clk 0:01:14.6]} 28. Nc1 {[%clk 0:01:54.6]} 28... Rhh8 {[%clk 0:01:13.6]} 29.
Ncd3 {[%clk 0:01:53.6]} 29... Rf8 {[%clk 0:01:13.8]} 30. Ne5 {[%clk 0:01:25.5]}
30... Nxe5 {[%clk 0:00:51.6]} 31. dxe5+ {[%clk 0:01:26.4]} 31... Kc6 {[%clk
0:00:51.5]} 32. Rxf8 {[%clk 0:01:06.3]} 32... Rxf8 {[%clk 0:00:51.2]} 33. Nxe6
{[%clk 0:01:07]} 33... Ra8 {[%clk 0:00:45.4]} 34. Nd4+ {[%clk 0:01:02.9]} 34...
Kd7 {[%clk 0:00:45.1]} 35. Nxf5 {[%clk 0:00:48.2]} 35... Ke6 {[%clk 0:00:43]}
36. Nxh4 {[%clk 0:00:40.3]} 36... Ra2 {[%clk 0:00:36.9]} 37. f4 {[%clk
0:00:36.2]} 37... Rxb2+ {[%clk 0:00:37.8]} 38. Ke3 {[%clk 0:00:36.1]} 38... Rc2
{[%clk 0:00:26]} 39. Kd3 {[%clk 0:00:35.8]} 39... Rf2 {[%clk 0:00:25.7]} 40. g3
{[%clk 0:00:23.2]} 40... Rh2 {[%clk 0:00:25]} 41. Nf3 {[%clk 0:00:22.8]} 41...
Rg2 {[%clk 0:00:20.4]} 42. g4 {[%clk 0:00:18.2]} 42... Rg3 {[%clk 0:00:20]} 43.
Ke3 {[%clk 0:00:12.9]} 43... Rxh3 {[%clk 0:00:19.5]} 44. f5+ {[%clk 0:00:13]}
44... Kd7 {[%clk 0:00:19.6]} 45. g5 {[%clk 0:00:08.9]} 45... Ke7 {[%clk
0:00:17.7]} 46. g6 {[%clk 0:00:09.2]} 46... Rh5 {[%clk 0:00:13.6]} 47. Kf4
{[%clk 0:00:09.1]} 47... b5 {[%clk 0:00:06.9]} 48. f6+ {[%clk 0:00:09.3]} 48...
Ke6 {[%clk 0:00:07]} 49. Nd4+ {[%clk 0:00:10.1]} 49... Kd7 {[%clk 0:00:06.4]}
50. g7 {[%clk 0:00:10.4]} 50... Rh4+ {[%clk 0:00:05.7]} 51. Kg3 {[%clk
0:00:08.5]} 51... Rh1 {[%clk 0:00:05.1]} 52. Nf3 {[%clk 0:00:09.1]} 52... Rg1+
{[%clk 0:00:02.5]} 53. Nxg1 {[%clk 0:00:09]} 1-0